[Event "Swiss Championship U10 2022"]
[Site "Biel"]
[Date "2022.07.20"]
[Round "5.1"]
[White "Chockalingam, Vishak"]
[Black "Saminskij, Jan"]
[Result "1-0"]
[ECO "D02"]
[WhiteElo "1285"]
[BlackElo "1487"]
[Annotator "NA RC COMBH"]
[PlyCount "49"]
[EventDate "2022.07.18"]
[EventType "swiss"]
[EventCountry "SUI"]
[SourceTitle "playchess.com"]
[Source "ChessBase"]
[SourceQuality "1"]
[TimeControl "5400+30"]

1. d4 {[%emt 0:01:20]} Nf6 {[%emt 0:00:23]} 2. Nf3 {[%emt 0:00:45]} e6 {[%emt 0:01:06]} 3. Bf4 {[%emt 0:02:56]} d5 {[%emt 0:01:20]} 4. e3 {[%emt 0:03:29]} b6 {[%emt 0:02:08]} 5. Nbd2 {[%emt 0:02:03]} Bb7 {[%emt 0:02:18]} 6. c4 {[%emt 0:05:47]} Bd6 {[%emt 0:00:53]} 7. Bg3 {[%emt 0:04:44]} Bxg3 {[%emt 0:12:44]} 8. hxg3 {[%emt 0:02:06]} c6 {[%emt 0:03:48]} 9. Qc2 {[%emt 0:03:26]} Na6 {[%emt 0:00:36]} 10. a3 {[%emt 0:04:03]} h6 {[%emt 0:02:56]} 11. Bd3 {[%emt 0:02:30]} Nc7 {[%emt 0:21:51]} 12. b4 {[%emt 0:15:14]} Qe7 {[%emt 0:06:44]} 13. c5 {[%emt 0:06:34]} Kf8 {[%emt 0:02:28]} 14. Ne5 {[%emt 0:00:00]} Nd7 {[%emt 0:19:44]} 15. Nxc6 {[%emt 0:05:19]} Bxc6 {[%emt 0:03:53]} 16. cxb6 {[%emt 0:05:05]} axb6 {[%emt 0:00:00]} 17. Qxc6 {[%emt 0:00:24]} Rc8 {[%emt 0:01:07]} 18. Qc2 {[%emt 0:02:19]} e5 {[%emt 0:05:35]} 19. Ba6 {[%emt 0:01:41]} Ra8 {[%emt 0:01:35]} 20. Qxc7 {[%emt 0:04:06]} exd4 {[%emt 0:01:06]} 21. O-O {[%emt 0:01:15]} dxe3 {[%emt 0:00:00]} 22. Nf3 {[%emt 0:00:25]} exf2+ {[%emt 0:00:00]} 23. Rxf2 {[%emt 0:00:41]} Qf6 {[%emt 0:00:39]} 24. Raf1 {[%emt 0:00:17]} Rd8 {[%emt 0:00:00]} 25. Ne5 {[%emt 0:02:27]} 1-0

[Event "Swiss Championship U10 2022"]
[Site "Biel"]
[Date "2022.07.20"]
[Round "5.2"]
[White "Bhingare, Joshua"]
[Black "Domschke, Mischa"]
[Result "0-1"]
[ECO "D20"]
[WhiteElo "1342"]
[BlackElo "1565"]
[Annotator "NA RC COMBH"]
[PlyCount "112"]
[EventDate "2022.07.18"]
[EventType "swiss"]
[EventCountry "SUI"]
[SourceTitle "playchess.com"]
[Source "ChessBase"]
[SourceQuality "1"]
[TimeControl "5400+30"]

1. e4 {[%emt 0:00:18]} e6 {[%emt 0:00:07]} 2. d4 {[%emt 0:00:03]} d5 {[%emt 0:00:00]} 3. exd5 exd5 {[%emt 0:00:23]} 4. c4 {[%emt 0:00:18]} dxc4 {[%emt 0:00:12]} 5. Bxc4 {[%emt 0:00:07]} Nf6 {[%emt 0:00:22]} 6. Nf3 {[%emt 0:00:13]} Be7 {[%emt 0:00:18]} 7. h3 {[%emt 0:00:13]} Bf5 {[%emt 0:00:21]} 8. Qb3 {[%emt 0:00:29]} O-O {[%emt 0:00:13]} 9. O-O {[%emt 0:00:30]} Nc6 {[%emt 0:02:44]} 10. Ne5 {[%emt 0:00:37]} Nxe5 {[%emt 0:00:07]} 11. dxe5 {[%emt 0:00:08]} Ne4 {[%emt 0:00:30]} 12. e6 {[%emt 0:00:25]} f6 {[%emt 0:00:45]} 13. Nc3 {[%emt 0:00:12]} Nc5 {[%emt 0:02:11]} 14. Qb5 {[%emt 0:02:30]} b6 {[%emt 0:00:43]} 15. b4 {[%emt 0:00:17]} a6 {[%emt 0:01:57]} 16. Qc6 {[%emt 0:01:51]} Qd4 {[%emt 0:01:12]} 17. Nd5 {[%emt 0:07:33]} Bd6 {[%emt 0:05:17]} 18. e7 {[%emt 0:01:06]} Qxc4 19. exf8=Q+ {[%emt 0:00:59]} Rxf8 {[%emt 0:01:10]} 20. bxc5 {[%emt 0:00:45]} bxc5 {[%emt 0:00:39]} 21. Ne3 {[%emt 0:00:42]} Qd3 {[%emt 0:00:14]} 22. Qd5+ {[%emt 0:00:00]} Qxd5 {[%emt 0:00:12]} 23. Nxd5 {[%emt 0:00:28]} Re8 {[%emt 0:00:37]} 24. Bf4 {[%emt 0:00:51]} Re2 {[%emt 0:00:17]} 25. Bxd6 {[%emt 0:00:23]} cxd6 {[%emt 0:00:19]} 26. Rfe1 {[%emt 0:00:18]} Bd3 {[%emt 0:00:16]} 27. Rxe2 {[%emt 0:00:00]} Bxe2 {[%emt 0:00:41]} 28. Ne7+ {[%emt 0:00:15]} Kf7 {[%emt 0:00:13]} 29. Kh2 {[%emt 0:00:23]} Kxe7 {[%emt 0:00:06]} 30. Re1 {[%emt 0:00:06]} d5 {[%emt 0:00:17]} 31. Rxe2+ {[%emt 0:00:14]} Kd6 {[%emt 0:00:03]} 32. Kg3 {[%emt 0:00:00]} d4 {[%emt 0:01:07]} 33. Kf4 {[%emt 0:00:19]} Kd5 {[%emt 0:00:58]} 34. Re8 {[%emt 0:00:40]} g5+ {[%emt 0:00:31]} 35. Kf3 {[%emt 0:00:19]} f5 {[%emt 0:01:37]} 36. Rd8+ {[%emt 0:00:17]} Kc4 {[%emt 0:00:11]} 37. Ke2 {[%emt 0:00:32]} Kc3 {[%emt 0:04:23]} 38. g4 {[%emt 0:00:36]} f4 {[%emt 0:00:12]} 39. f3 {[%emt 0:00:16]} c4 {[%emt 0:00:02]} 40. Kd1 {[%emt 0:00:43]} Kd3 {[%emt 0:00:26]} 41. Re8 {[%emt 0:00:12]} Kc3 {[%emt 0:03:58]} 42. Rb8 {[%emt 0:00:25]} Kd3 {[%emt 0:00:10]} 43. Rb2 {[%emt 0:00:24]} Ke3 {[%emt 0:01:32]} 44. Kc2 {[%emt 0:09:39]} Kxf3 45. Rb4 {[%emt 0:00:30]} Ke2 {[%emt 0:01:03]} 46. Rxc4 {[%emt 0:00:14]} d3+ {[%emt 0:00:00]} 47. Kc3 {[%emt 0:01:49]} f3 {[%emt 0:00:18]} 48. Re4+ {[%emt 0:00:19]} Kd1 {[%emt 0:01:53]} 49. Re3 {[%emt 0:00:24]} f2 {[%emt 0:00:08]} 50. Rf3 {[%emt 0:00:21]} Ke2 {[%emt 0:00:07]} 51. Rxf2+ {[%emt 0:00:11]} Kxf2 {[%emt 0:00:00]} 52. Kxd3 {[%emt 0:00:18]} Kg3 {[%emt 0:00:02]} 53. Kc4 {[%emt 0:00:12]} Kxh3 {[%emt 0:00:09]} 54. Kb4 {[%emt 0:00:08]} Kxg4 {[%emt 0:00:06]} 55. Ka5 {[%emt 0:00:10]} Kf3 {[%emt 0:00:06]} 56. Kxa6 {[%emt 0:00:09]} g4 {[%emt 0:00:05]} 0-1

[Event "Swiss Championship U10 2022"]
[Site "Biel"]
[Date "2022.07.20"]
[Round "5.3"]
[White "Kumar, Shreyank"]
[Black "Jordan, Christina"]
[Result "1-0"]
[ECO "C44"]
[WhiteElo "1404"]
[BlackElo "1367"]
[Annotator "NA RC COMBH"]
[PlyCount "119"]
[EventDate "2022.07.18"]
[EventType "swiss"]
[EventCountry "SUI"]
[SourceTitle "playchess.com"]
[Source "ChessBase"]
[SourceQuality "1"]
[TimeControl "5400+30"]

1. e4 {[%emt 0:00:01]} e5 {[%emt 0:00:04]} 2. Nf3 {[%emt 0:00:05]} Nc6 {[%emt 0:00:05]} 3. c3 {[%emt 0:00:05]} Nf6 {[%emt 0:00:27]} 4. d4 {[%emt 0:00:07]} exd4 {[%emt 0:00:27]} 5. e5 {[%emt 0:00:07]} Nd5 {[%emt 0:00:44]} 6. cxd4 {[%emt 0:00:08]} d6 {[%emt 0:00:41]} 7. Bb5 {[%emt 0:00:20]} Bd7 {[%emt 0:00:35]} 8. O-O {[%emt 0:00:22]} a6 {[%emt 0:00:45]} 9. Ba4 {[%emt 0:00:17]} Be7 {[%emt 0:00:38]} 10. Bb3 {[%emt 0:00:19]} Nb6 {[%emt 0:00:38]} 11. exd6 {[%emt 0:00:22]} Bxd6 {[%emt 0:00:20]} 12. Re1+ {[%emt 0:00:22]} Ne7 {[%emt 0:00:34]} 13. Bg5 {[%emt 0:00:41]} O-O {[%emt 0:01:23]} 14. Nc3 {[%emt 0:03:16]} Re8 {[%emt 0:02:27]} 15. Nd5 {[%emt 0:03:43]} Nbxd5 {[%emt 0:00:26]} 16. Bxd5 {[%emt 0:00:12]} c6 {[%emt 0:00:39]} 17. Bb3 {[%emt 0:00:39]} Bg4 {[%emt 0:01:21]} 18. Re3 {[%emt 0:03:04]} Qc7 {[%emt 0:01:07]} 19. h3 {[%emt 0:00:24]} Bh5 {[%emt 0:00:23]} 20. Qe2 {[%emt 0:00:21]} Kh8 {[%emt 0:04:59]} 21. Bxe7 {[%emt 0:01:27]} Rxe7 {[%emt 0:00:34]} 22. Rxe7 {[%emt 0:00:11]} Qxe7 {[%emt 0:01:02]} 23. Qxe7 {[%emt 0:00:07]} Bxe7 {[%emt 0:00:05]} 24. Re1 {[%emt 0:00:18]} Bf6 {[%emt 0:01:02]} 25. Ne5 {[%emt 0:00:28]} Kg8 {[%emt 0:02:54]} 26. f4 {[%emt 0:01:18]} Rd8 {[%emt 0:01:16]} 27. g4 {[%emt 0:00:31]} Bxe5 {[%emt 0:05:19]} 28. Rxe5 {[%emt 0:00:55]} Bg6 {[%emt 0:00:53]} 29. f5 {[%emt 0:00:07]} Kf8 {[%emt 0:02:02]} 30. fxg6 {[%emt 0:00:40]} hxg6 {[%emt 0:00:09]} 31. Re4 {[%emt 0:00:29]} b5 {[%emt 0:00:39]} 32. a4 {[%emt 0:00:50]} Rb8 {[%emt 0:01:36]} 33. Re2 {[%emt 0:00:21]} f5 {[%emt 0:00:55]} 34. Rf2 {[%emt 0:00:16]} Ke7 {[%emt 0:00:51]} 35. g5 {[%emt 0:00:29]} Kd6 {[%emt 0:00:23]} 36. Re2 {[%emt 0:00:21]} bxa4 {[%emt 0:00:23]} 37. Bxa4 {[%emt 0:00:16]} Rb4 {[%emt 0:00:06]} 38. b3 {[%emt 0:00:35]} Rxd4 {[%emt 0:00:05]} 39. Rc2 {[%emt 0:00:24]} c5 {[%emt 0:00:12]} 40. Kf2 {[%emt 0:00:21]} Rh4 {[%emt 0:01:00]} 41. Kg3 {[%emt 0:00:05]} Rd4 {[%emt 0:00:38]} 42. Re2 {[%emt 0:00:45]} f4+ {[%emt 0:01:11]} 43. Kg4 {[%emt 0:00:36]} c4 {[%emt 0:00:51]} 44. bxc4 {[%emt 0:01:57]} Rxc4 {[%emt 0:00:06]} 45. Rd2+ {[%emt 0:01:10]} Ke7 {[%emt 0:00:43]} 46. Rd7+ {[%emt 0:01:54]} Ke6 {[%emt 0:00:07]} 47. Bb3 {[%emt 0:00:07]} Kxd7 {[%emt 0:00:06]} 48. Bxc4 {[%emt 0:00:03]} a5 {[%emt 0:00:05]} 49. Kxf4 {[%emt 0:00:13]} Kd6 {[%emt 0:01:07]} 50. Bb3 {[%emt 0:00:30]} Ke7 {[%emt 0:01:08]} 51. Ke5 {[%emt 0:00:14]} Kd7 {[%emt 0:00:16]} 52. Bf7 {[%emt 0:00:19]} a4 {[%emt 0:00:32]} 53. Bxg6 {[%emt 0:00:07]} a3 {[%emt 0:00:04]} 54. Bb1 {[%emt 0:00:08]} Ke7 {[%emt 0:00:10]} 55. Ba2 {[%emt 0:00:08]} g6 {[%emt 0:01:06]} 56. Bb3 {[%emt 0:00:27]} Kf8 {[%emt 0:01:13]} 57. Kf6 {[%emt 0:00:11]} Ke8 {[%emt 0:00:12]} 58. Kxg6 {[%emt 0:00:18]} Kf8 {[%emt 0:00:10]} 59. Kh7 {[%emt 0:00:10]} Ke7 {[%emt 0:00:12]} 60. g6 {[%emt 0:00:05]} 1-0

[Event "Swiss Championship U10 2022"]
[Site "Biel"]
[Date "2022.07.20"]
[Round "5.4"]
[White "Bachmann, Elias"]
[Black "Pahud, Kylian"]
[Result "0-1"]
[ECO "D35"]
[WhiteElo "1319"]
[BlackElo "1373"]
[Annotator "NA RC COMBH"]
[PlyCount "168"]
[EventDate "2022.07.18"]
[EventType "swiss"]
[EventCountry "SUI"]
[SourceTitle "playchess.com"]
[Source "ChessBase"]
[SourceQuality "1"]
[TimeControl "5400+30"]

1. d4 {[%emt 0:00:04]} d5 {[%emt 0:01:04]} 2. c4 {[%emt 0:00:47]} e6 {[%emt 0:00:45]} 3. Nc3 {[%emt 0:00:33]} Nf6 {[%emt 0:00:39]} 4. cxd5 {[%emt 0:00:00]} exd5 {[%emt 0:00:41]} 5. Bg5 {[%emt 0:00:00]} Nbd7 {[%emt 0:01:08]} 6. Nf3 {[%emt 0:01:05]} c6 {[%emt 0:01:38]} 7. e3 {[%emt 0:01:18]} h6 {[%emt 0:00:26]} 8. Bh4 {[%emt 0:02:55]} Be7 {[%emt 0:01:32]} 9. Bd3 {[%emt 0:00:51]} O-O {[%emt 0:00:49]} 10. O-O {[%emt 0:01:04]} Re8 {[%emt 0:01:08]} 11. Rc1 {[%emt 0:01:12]} Ne4 {[%emt 0:01:15]} 12. Bxe7 {[%emt 0:01:53]} Qxe7 {[%emt 0:03:53]} 13. Qc2 {[%emt 0:00:19]} Ndf6 {[%emt 0:00:49]} 14. Ne5 {[%emt 0:10:23]} a6 {[%emt 0:09:48]} 15. Rfe1 {[%emt 0:11:15]} Qe6 {[%emt 0:03:14]} 16. h3 {[%emt 0:00:00]} b6 {[%emt 0:01:18]} 17. Nxe4 {[%emt 0:00:00]} dxe4 {[%emt 0:00:47]} 18. Bxe4 {[%emt 0:00:00]} Nxe4 {[%emt 0:00:18]} 19. Qxe4 {[%emt 0:00:00]} f6 {[%emt 0:01:26]} 20. Qxc6 {[%emt 0:00:00]} Qxc6 {[%emt 0:01:01]} 21. Nxc6 {[%emt 0:00:56]} Bb7 {[%emt 0:02:17]} 22. Nb4 {[%emt 0:00:59]} Rac8 {[%emt 0:00:00]} 23. Kh2 {[%emt 0:01:59]} a5 {[%emt 0:00:00]} 24. Nd3 {[%emt 0:01:32]} Ba6 {[%emt 0:02:47]} 25. Rxc8 {[%emt 0:01:10]} Rxc8 {[%emt 0:00:00]} 26. Rc1 {[%emt 0:00:15]} Rxc1 {[%emt 0:01:10]} 27. Nxc1 {[%emt 0:00:25]} Kf7 {[%emt 0:00:21]} 28. Kg3 {[%emt 0:00:00]} Ke6 {[%emt 0:00:20]} 29. Kf4 {[%emt 0:00:24]} Bf1 {[%emt 0:00:15]} 30. Kf3 {[%emt 0:01:06]} Bc4 {[%emt 0:00:44]} 31. b3 {[%emt 0:02:36]} Ba6 {[%emt 0:04:05]} 32. Ne2 {[%emt 0:00:28]} g5 {[%emt 0:01:34]} 33. Nc3 {[%emt 0:00:55]} f5 {[%emt 0:01:35]} 34. g3 {[%emt 0:03:39]} Bf1 {[%emt 0:00:49]} 35. h4 {[%emt 0:01:48]} g4+ {[%emt 0:04:14]} 36. Kf4 {[%emt 0:00:14]} Ba6 {[%emt 0:00:23]} 37. e4 {[%emt 0:00:00]} fxe4 {[%emt 0:01:04]} 38. Kxe4 {[%emt 0:00:27]} Bc8 {[%emt 0:01:04]} 39. Nb5 {[%emt 0:00:00]} Bd7 {[%emt 0:04:25]} 40. d5+ {[%emt 0:03:13]} Ke7 {[%emt 0:01:41]} 41. a4 {[%emt 0:01:00]} h5 {[%emt 0:01:40]} 42. Ke5 {[%emt 0:00:00]} Be8 {[%emt 0:04:29]} 43. Nd6 {[%emt 0:01:32]} Bd7 {[%emt 0:01:36]} 44. Nf5+ {[%emt 0:03:26]} Kf7 {[%emt 0:01:46]} 45. d6 {[%emt 0:03:55]} Kg6 {[%emt 0:03:17]} 46. Ne7+ {[%emt 0:00:00]} Kf7 {[%emt 0:05:47]} 47. Nd5 {[%emt 0:02:24]} Be6 {[%emt 0:02:10]} 48. Nxb6 {[%emt 0:00:00]} Bxb3 {[%emt 0:01:00]} 49. d7 {[%emt 0:00:00]} Ke7 {[%emt 0:02:00]} 50. Kf5 {[%emt 0:00:00]} Bf7 {[%emt 0:00:59]} 51. Kf4 {[%emt 0:00:00]} Bb3 {[%emt 0:02:19]} 52. f3 {[%emt 0:00:00]} gxf3 {[%emt 0:02:07]} 53. Kxf3 {[%emt 0:00:00]} Bf7 {[%emt 0:00:48]} 54. Ke4 {[%emt 0:03:18]} Kd8 {[%emt 0:03:29]} 55. Kf5 {[%emt 0:00:56]} Bb3 {[%emt 0:01:33]} 56. Kg5 {[%emt 0:00:00]} Bd1 {[%emt 0:00:14]} 57. Kf6 {[%emt 0:00:00]} Bg4 {[%emt 0:01:24]} 58. Ke5 {[%emt 0:00:00]} Bd1 {[%emt 0:05:02]} 59. Ke6 {[%emt 0:02:15]} Bb3+ {[%emt 0:00:21]} 60. Ke5 {[%emt 0:00:00]} Bd1 {[%emt 0:03:03]} 61. Kd5 {[%emt 0:00:52]} Bc2 {[%emt 0:00:00]} 62. Kc5 {[%emt 0:00:00]} Bd3 {[%emt 0:01:30]} 63. Kc6 {[%emt 0:01:28]} Be2 {[%emt 0:00:00]} 64. Na8 {[%emt 0:01:16]} Bf3+ {[%emt 0:00:00]} 65. Kb5 {[%emt 0:00:00]} Bxa8 {[%emt 0:00:00]} 66. Kxa5 {[%emt 0:00:00]} Kxd7 {[%emt 0:00:27]} 67. Kb4 {[%emt 0:00:40]} Kc6 {[%emt 0:00:19]} 68. Kc4 {[%emt 0:00:11]} Kb6 {[%emt 0:00:00]} 69. Kd4 {[%emt 0:00:12]} Ka5 {[%emt 0:00:15]} 70. Ke5 {[%emt 0:00:00]} Bf3 {[%emt 0:00:00]} 71. Kf4 {[%emt 0:00:11]} Bg4 {[%emt 0:00:00]} 72. Ke3 {[%emt 0:00:00]} Kxa4 {[%emt 0:00:00]} 73. Kf2 {[%emt 0:00:00]} Kb3 {[%emt 0:00:59]} 74. Kg2 {[%emt 0:00:00]} Kc3 {[%emt 0:00:15]} 75. Kg1 {[%emt 0:00:00]} Kd2 {[%emt 0:00:52]} 76. Kf2 {[%emt 0:00:02]} Kd3 {[%emt 0:00:00]} 77. Kg1 {[%emt 0:00:00]} Ke3 {[%emt 0:00:00]} 78. Kg2 {[%emt 0:00:00]} Ke2 {[%emt 0:00:45]} 79. Kg1 {[%emt 0:00:00]} Kf3 {[%emt 0:00:00]} 80. Kh2 {[%emt 0:00:00]} Kf2 {[%emt 0:00:20]} 81. Kh1 {[%emt 0:00:04]} Bf3+ {[%emt 0:00:00]} 82. Kh2 {[%emt 0:00:00]} Bg2 {[%emt 0:00:00]} 83. g4 {[%emt 0:00:00]} hxg4 {[%emt 0:00:00]} 84. h5 {[%emt 0:00:00]} g3# 0-1

[Event "Swiss Championship U10 2022"]
[Site "Biel"]
[Date "2022.07.20"]
[Round "5.5"]
[White "Gong, Yansheng"]
[Black "Rams, Vedha"]
[Result "0-1"]
[ECO "B01"]
[WhiteElo "1285"]
[BlackElo "1312"]
[Annotator "NA RC COMBH"]
[PlyCount "56"]
[EventDate "2022.07.18"]
[EventType "swiss"]
[EventCountry "SUI"]
[SourceTitle "playchess.com"]
[Source "ChessBase"]
[SourceQuality "1"]
[TimeControl "5400+30"]

1. e4 {[%emt 0:00:04]} d5 {[%emt 0:00:15]} 2. exd5 {[%emt 0:00:14]} Qxd5 {[%emt 0:00:37]} 3. Nc3 {[%emt 0:00:22]} Qd8 {[%emt 0:00:00]} 4. d4 {[%emt 0:00:39]} Bf5 {[%emt 0:00:36]} 5. Nf3 {[%emt 0:00:04]} e6 {[%emt 0:00:31]} 6. Bc4 {[%emt 0:00:22]} Nf6 {[%emt 0:00:31]} 7. h3 {[%emt 0:00:30]} h6 {[%emt 0:01:00]} 8. Bf4 {[%emt 0:00:18]} Bb4 {[%emt 0:00:40]} 9. Bd2 {[%emt 0:00:54]} a6 {[%emt 0:00:38]} 10. O-O {[%emt 0:00:39]} O-O {[%emt 0:00:20]} 11. a3 {[%emt 0:00:24]} Ba5 {[%emt 0:00:39]} 12. b4 {[%emt 0:00:38]} Bb6 {[%emt 0:00:50]} 13. Be3 {[%emt 0:00:35]} Nc6 {[%emt 0:02:54]} 14. Re1 {[%emt 0:01:04]} Re8 {[%emt 0:02:28]} 15. Bd3 {[%emt 0:01:25]} Bxd4 {[%emt 0:02:53]} 16. Nxd4 {[%emt 0:01:39]} Nxd4 {[%emt 0:01:01]} 17. Bxf5 {[%emt 0:00:33]} Nxf5 {[%emt 0:00:09]} 18. Qe2 {[%emt 0:01:27]} Qd6 {[%emt 0:02:46]} 19. Bc5 {[%emt 0:02:35]} Qc6 {[%emt 0:01:52]} 20. Ne4 {[%emt 0:02:56]} e5 {[%emt 0:01:25]} 21. Qf3 {[%emt 0:00:38]} Nh4 {[%emt 0:02:44]} 22. Nxf6+ {[%emt 0:00:51]} Qxf6 {[%emt 0:01:01]} 23. Qxb7 {[%emt 0:00:38]} Qg6 {[%emt 0:02:53]} 24. Rxe5 {[%emt 0:02:22]} c6 {[%emt 0:02:19]} 25. Rxe8+ {[%emt 0:01:32]} Rxe8 {[%emt 0:00:15]} 26. g3 {[%emt 0:00:38]} Nf3+ {[%emt 0:03:08]} 27. Kg2 {[%emt 0:00:32]} Qe4 {[%emt 0:00:33]} 28. Qxa6 {[%emt 0:00:58]} Nh4+ {[%emt 0:02:38]} 0-1

[Event "Swiss Championship U10 2022"]
[Site "Biel"]
[Date "2022.07.20"]
[Round "5.6"]
[White "Cavadini, Tommaso"]
[Black "Lerner, David B"]
[Result "0-1"]
[ECO "B28"]
[WhiteElo "1290"]
[BlackElo "2125"]
[Annotator "TA"]
[PlyCount "50"]
[EventDate "2022.07.18"]
[EventType "swiss"]
[EventCountry "SUI"]
[SourceTitle "playchess.com"]
[Source "ChessBase"]
[SourceQuality "1"]
[TimeControl "5400+30"]

{[%evp 10,50,33,34,45,33,41,6,5,6,15,10,12,0,94,102,150,-53,-49,-54,-49,-54,-51,-189,-187,-190,-186,-199,-182,-237,-250,-278,-278,-264,-274,-698,-695,-787,-795,-779,-743,-763,-704]} 1. e4 {[%emt 0:00:05]} c5 {[%emt 0:00:08]} 2. Nf3 {[%emt 0:00:12]} a6 {[%emt 0:00:19]} 3. c3 {[%emt 0:00:23]} e6 {[%emt 0:00:20]} 4. d4 {[%emt 0:01:07]} d5 {[%emt 0:00:55]} 5. e5 {[%emt 0:00:30]} Bd7 {[%emt 0:00:18]} 6. Bd3 {[%emt 0:00:32]} cxd4 {[%emt 0:00:17] B28: Sicilian: 2 Nf3 a6 (O'Kelly Variation).} 7. cxd4 {[%emt 0:00:21]} Bb5 {[%emt 0:00:35]} 8. Bxb5+ {[%emt 0:02:07]} axb5 {[%emt 0:00:27] The position is equal.} 9. O-O {[%emt 0:00:53] [#]} Qb6 $146 {[%emt 0:01:04]} ({Predecessor:} 9... b4 10. Nbd2 Ne7 11. Nb3 Nec6 12. Ne1 Nd7 13. f4 g6 14. Nf3 Be7 15. Be3 h5 {1-0 (36) Katz,A (2401)-Izoria,Z (2602) Chess.com INT 2021}) 10. Be3 {[%emt 0:02:56]} Ne7 {[%emt 0:01:32]} 11. Qd3 {[%emt 0:01:44]} Nf5 {[%emt 0:00:20]} (11... b4 $11 {remains equal.}) 12. Nc3 $16 {[%emt 0:01:54][%cal Oc3d5]} b4 {[%emt 0:03:59] [#]} (12... Nxe3 $142 13. fxe3 Be7) 13. Qb5+ $2 {[%emt 0:00:46]} (13. Nxd5 $1 $16 {[%mdl 512]} exd5 14. Qxf5) 13... Nd7 $15 {[%emt 0:01:13]} 14. Qxb6 {[%emt 0:01:31]} Nxb6 {[%emt 0:00:43]} 15. Nb5 {[%emt 0:00:30] Strongly threatening Nc7+.} Ra5 $36 {[%emt 0:01:23][%mdl 2048] Black has the initiative.} 16. Nd6+ {[%emt 0:00:56] This move loses the game for White.} (16. a4 $1 $15 bxa3 17. Nxa3) 16... Nxd6 $19 {[%emt 0:00:26]} ({Stronger than} 16... Bxd6 17. exd6 Nxe3 18. fxe3 $17) 17. exd6 {[%emt 0:00:15]} Bxd6 {[%emt 0:00:10]} 18. Rfc1 {[%emt 0:03:21]} O-O {[%emt 0:00:58][%cal Bh8f8,Bf8a8,Ba8a2][%mdl 32]} 19. Ne5 {[%emt 0:01:37]} (19. b3 {was necessary.}) 19... Rfa8 {[%emt 0:02:40]} 20. b3 {[%emt 0:11:24]} Rxa2 {[%emt 0:01:01]} 21. Rxa2 {[%emt 0:00:11]} Rxa2 {[%emt 0:01:20]} 22. Nc6 $2 {[%emt 0:02:52] [#]} (22. Nd3) 22... bxc6 {[%emt 0:02:13] Black is clearly winning.} 23. Rxc6 {[%emt 0:00:15]} Ra1+ {[%emt 0:01:08]} 24. Rc1 {[%emt 0:00:22]} Rxc1+ {[%emt 0:00:26]} 25. Bxc1 {[%emt 0:00:09]} e5 {[%emt 0:00:53] Weighted Error Value: White=0.65/Black=0.17 (very precise)} 0-1